[Event "Titled Tuesday Blitz May 9 Late 2023"]
[White "Pranav, V"]
[Black "Rodshtein, Maxim"]
[WhiteFideId "25060783"]
[BlackFideId "2806851"]
[WhiteElo "2515"]
[BlackElo "2555"]
[Result "1-0"]
[Round "08"]
[TimeControl "180+2"]
[Date "2023.05.09"]
[WhiteClock "0:00:05"]
[BlackClock "0:00:01"]

1. e4 {[%clk 0:03:00]}  c5 {[%clk 0:03:00]} 2. Nf3 {[%clk 0:03:01]}  Nc6 {[%clk 0:02:59]} 3. Bb5 {[%clk 0:03:01]}  e6 {[%clk 0:02:59]} 4. Bxc6 {[%clk 0:03:01]}  bxc6 {[%clk 0:02:59]} 5. O-O {[%clk 0:03:02]}  d6 {[%clk 0:02:56]} 6. d4 {[%clk 0:02:58]}  cxd4 {[%clk 0:02:55]} 7. Nxd4 {[%clk 0:02:59]}  c5 {[%clk 0:02:52]} 8. Nb3 {[%clk 0:02:59]}  Nf6 {[%clk 0:02:47]} 9. Re1 {[%clk 0:02:59]}  Qc7 {[%clk 0:02:45]} 10. c4 {[%clk 0:02:59]}  Bb7 {[%clk 0:02:43]} 11. Nc3 {[%clk 0:02:59]}  a6 {[%clk 0:02:43]} 12. Bf4 {[%clk 0:02:59]}  Nd7 {[%clk 0:02:42]} 13. Qg4 {[%clk 0:02:52]}  h5 {[%clk 0:02:29]} 14. Qh3 {[%clk 0:02:51]}  Be7 {[%clk 0:02:25]} 15. Qe3 {[%clk 0:02:42]}  f6 {[%clk 0:02:19]} 16. h3 {[%clk 0:02:40]}  g5 {[%clk 0:02:14]} 17. Bh2 {[%clk 0:02:40]}  Ne5 {[%clk 0:02:14]} 18. Nd2 {[%clk 0:02:40]}  g4 {[%clk 0:02:02]} 19. Rad1 {[%clk 0:02:33]}  Kf7 {[%clk 0:01:57]} 20. h4 {[%clk 0:02:30]}  Bf8 {[%clk 0:01:47]} 21. b3 {[%clk 0:02:28]}  Ng6 {[%clk 0:01:44]} 22. Bg3 {[%clk 0:02:15]}  Bh6 {[%clk 0:01:42]} 23. Qd3 {[%clk 0:02:16]}  Rad8 {[%clk 0:01:38]} 24. Nf1 {[%clk 0:02:13]}  Ne5 {[%clk 0:01:28]} 25. Qc2 {[%clk 0:02:10]}  Bc6 {[%clk 0:01:09]} 26. Ne3 {[%clk 0:02:06]}  Qa5 {[%clk 0:01:08]} 27. Kh2 {[%clk 0:01:39]}  Rd7 {[%clk 0:01:06]} 28. Kg1 {[%clk 0:01:28]}  Qb4 {[%clk 0:01:06]} 29. Kh2 {[%clk 0:01:26]}  Rdd8 {[%clk 0:00:58]} 30. Kg1 {[%clk 0:01:19]}  Qb7 {[%clk 0:00:54]} 31. Kh2 {[%clk 0:01:16]}  Kg7 {[%clk 0:00:53]} 32. Nf1 {[%clk 0:01:04]}  Qe7 {[%clk 0:00:46]} 33. Kg1 {[%clk 0:01:03]}  Bb7 {[%clk 0:00:40]} 34. Ne3 {[%clk 0:01:03]}  Qf7 {[%clk 0:00:38]} 35. Nf1 {[%clk 0:01:00]}  Qg6 {[%clk 0:00:38]} 36. Qb1 {[%clk 0:00:55]}  Rd7 {[%clk 0:00:37]} 37. Na4 {[%clk 0:00:52]}  Rhd8 {[%clk 0:00:35]} 38. Nc3 {[%clk 0:00:49]}  Nc6 {[%clk 0:00:32]} 39. Ne2 {[%clk 0:00:44]}  e5 {[%clk 0:00:31]} 40. Ne3 {[%clk 0:00:42]}  Bxe3 {[%clk 0:00:29]} 41. fxe3 {[%clk 0:00:43]}  Ne7 {[%clk 0:00:28]} 42. Nc3 {[%clk 0:00:43]}  f5 {[%clk 0:00:24]} 43. Rf1 {[%clk 0:00:37]}  Bxe4 {[%clk 0:00:20]} 44. Nxe4 {[%clk 0:00:34]}  fxe4 {[%clk 0:00:21]} 45. Kh2 {[%clk 0:00:29]}  Kh7 {[%clk 0:00:14]} 46. Rd2 {[%clk 0:00:26]}  Rg8 {[%clk 0:00:07]} 47. Rdf2 {[%clk 0:00:25]}  Qh6 {[%clk 0:00:03]} 48. Qxe4+ {[%clk 0:00:24]}  Qg6 {[%clk 0:00:03]} 49. Rf7+ {[%clk 0:00:07]}  Rg7 {[%clk 0:00:02]} 50. Rxg7+ {[%clk 0:00:07]}  Kxg7 {[%clk 0:00:02]} 51. Qa8 {[%clk 0:00:08]}  Kh7 {[%clk 0:00:01]} 52. Qf8 {[%clk 0:00:07]}  Ng8 {[%clk 0:00:02]} 53. e4 {[%clk 0:00:05]}  Nh6 {[%clk 0:00:02]} 54. a3 {[%clk 0:00:03]}  Rf7 {[%clk 0:00:02]} 55. Rxf7+ {[%clk 0:00:03]}  Nxf7 {[%clk 0:00:03]} 56. b4 {[%clk 0:00:04]}  Qg7 {[%clk 0:00:03]} 57. Qe7 {[%clk 0:00:03]}  cxb4 {[%clk 0:00:02]} 58. axb4 {[%clk 0:00:04]}  Qg6 {[%clk 0:00:02]} 59. c5 {[%clk 0:00:04]}  dxc5 {[%clk 0:00:03]} 60. bxc5 {[%clk 0:00:05]}  Kh6 {[%clk 0:00:04]} 61. Bxe5 {[%clk 0:00:05]}  Qxe4 {[%clk 0:00:03]} 62. Bg7+ {[%clk 0:00:05]}  Kxg7 {[%clk 0:00:01]} 63. Qxe4 {[%clk 0:00:05]} 1-0


[Site "https://www.chess.com"]

[Event "Titled Tuesday Blitz May 9 Late 2023"]
[White "Kollars, Dmitrij"]
[Black "Mekhitarian, Krikor Sevag"]
[WhiteFideId "12909572"]
[BlackFideId "2107660"]
[WhiteElo "2584"]
[BlackElo "2604"]
[Result "1-0"]
[Round "08"]
[TimeControl "180+2"]
[Date "2023.05.09"]
[WhiteClock "0:01:20"]
[BlackClock "0:00:13"]

1. e4 {[%clk 0:03:00]}  e6 {[%clk 0:02:59]} 2. d4 {[%clk 0:02:59]}  d5 {[%clk 0:02:59]} 3. Nc3 {[%clk 0:03:00]}  Nf6 {[%clk 0:02:59]} 4. Bg5 {[%clk 0:02:59]}  dxe4 {[%clk 0:02:59]} 5. Nxe4 {[%clk 0:03:00]}  Be7 {[%clk 0:03:00]} 6. Nxf6+ {[%clk 0:02:59]}  Bxf6 {[%clk 0:03:00]} 7. Bxf6 {[%clk 0:03:00]}  Qxf6 {[%clk 0:03:00]} 8. Nf3 {[%clk 0:03:00]}  b6 {[%clk 0:02:53]} 9. Bb5+ {[%clk 0:02:58]}  c6 {[%clk 0:02:45]} 10. Bd3 {[%clk 0:02:56]}  Bb7 {[%clk 0:02:44]} 11. Qe2 {[%clk 0:02:55]}  O-O {[%clk 0:02:40]} 12. Qe4 {[%clk 0:02:51]}  g6 {[%clk 0:02:37]} 13. h4 {[%clk 0:02:39]}  Nd7 {[%clk 0:02:31]} 14. h5 {[%clk 0:02:37]}  Rab8 {[%clk 0:02:24]} 15. Qe3 {[%clk 0:02:37]}  c5 {[%clk 0:02:22]} 16. hxg6 {[%clk 0:02:28]}  hxg6 {[%clk 0:02:21]} 17. O-O-O {[%clk 0:02:17]}  Bxf3 {[%clk 0:02:14]} 18. gxf3 {[%clk 0:02:17]}  cxd4 {[%clk 0:02:10]} 19. Qh6 {[%clk 0:02:17]}  Qg7 {[%clk 0:02:09]} 20. Qg5 {[%clk 0:02:16]}  Nc5 {[%clk 0:02:05]} 21. Rh6 {[%clk 0:02:04]}  Nxd3+ {[%clk 0:01:57]} 22. Rxd3 {[%clk 0:01:55]}  Rbc8 {[%clk 0:01:26]} 23. f4 {[%clk 0:01:55]}  Rc5 {[%clk 0:01:26]} 24. Qh4 {[%clk 0:01:55]}  Rfc8 {[%clk 0:01:24]} 25. Rh3 {[%clk 0:01:54]}  Rxc2+ {[%clk 0:01:24]} 26. Kd1 {[%clk 0:01:54]}  Rc1+ {[%clk 0:00:56]} 27. Kd2 {[%clk 0:01:32]}  R1c2+ {[%clk 0:00:21]} 28. Kd3 {[%clk 0:01:30]}  R2c3+ {[%clk 0:00:17]} 29. bxc3 {[%clk 0:01:31]}  Rxc3+ {[%clk 0:00:17]} 30. Kd2 {[%clk 0:01:23]}  Rxh3 {[%clk 0:00:16]} 31. Qxh3 {[%clk 0:01:24]}  Qf6 {[%clk 0:00:15]} 32. Qh4 {[%clk 0:01:21]}  Qg7 {[%clk 0:00:13]} 33. Qd8+ {[%clk 0:01:20]} 1-0


[Site "https://www.chess.com"]

[Event "Titled Tuesday Blitz May 9 Late 2023"]
[White "Rasulov, Vugar"]
[Black "Wieczorek, Oskar"]
[WhiteFideId "13402390"]
[BlackFideId "1133950"]
[WhiteElo "2509"]
[BlackElo "2418"]
[Result "0-1"]
[Round "08"]
[TimeControl "180+2"]
[Date "2023.05.09"]
[WhiteClock "0:00:00"]
[BlackClock "0:00:46"]

1. e4 {[%clk 0:03:00]}  c5 {[%clk 0:03:00]} 2. Nf3 {[%clk 0:03:00]}  e6 {[%clk 0:03:00]} 3. d4 {[%clk 0:03:00]}  cxd4 {[%clk 0:03:01]} 4. Nxd4 {[%clk 0:03:01]}  Nf6 {[%clk 0:03:02]} 5. Nc3 {[%clk 0:03:01]}  d6 {[%clk 0:03:02]} 6. g4 {[%clk 0:03:00]}  e5 {[%clk 0:03:02]} 7. Nf5 {[%clk 0:03:00]}  h5 {[%clk 0:03:03]} 8. gxh5 {[%clk 0:02:54]}  Nxe4 {[%clk 0:02:37]} 9. Nxg7+ {[%clk 0:02:50]}  Bxg7 {[%clk 0:02:38]} 10. Nxe4 {[%clk 0:02:50]}  d5 {[%clk 0:02:39]} 11. h6 {[%clk 0:02:41]}  Bxh6 {[%clk 0:02:28]} 12. Qxd5 {[%clk 0:02:41]}  Qxd5 {[%clk 0:02:29]} 13. Nf6+ {[%clk 0:02:41]}  Kf8 {[%clk 0:02:11]} 14. Nxd5 {[%clk 0:02:42]}  Bxc1 {[%clk 0:02:05]} 15. Rxc1 {[%clk 0:02:43]}  Nc6 {[%clk 0:02:06]} 16. c3 {[%clk 0:02:38]}  Bf5 {[%clk 0:02:02]} 17. Bg2 {[%clk 0:02:36]}  Rd8 {[%clk 0:01:54]} 18. Ne3 {[%clk 0:02:29]}  Be6 {[%clk 0:01:51]} 19. a3 {[%clk 0:02:21]}  f5 {[%clk 0:01:49]} 20. Nc2 {[%clk 0:01:51]}  Ke7 {[%clk 0:01:44]} 21. Nb4 {[%clk 0:01:49]}  Na5 {[%clk 0:01:43]} 22. f3 {[%clk 0:01:38]}  Nc4 {[%clk 0:01:37]} 23. Rc2 {[%clk 0:01:29]}  Ne3 {[%clk 0:01:18]} 24. Re2 {[%clk 0:01:29]}  f4 {[%clk 0:01:02]} 25. Nc2 {[%clk 0:01:14]}  Rd1+ {[%clk 0:00:45]} 26. Kf2 {[%clk 0:00:00]}  Rxh1 {[%clk 0:00:46]} 0-1


[Site "https://www.chess.com"]

[Event "Titled Tuesday Blitz May 9 Late 2023"]
[White "Sargsyan, Shant"]
[Black "Krzyzanowski, Marcin"]
[WhiteFideId "13306766"]
[BlackFideId "1132199"]
[WhiteElo "2628"]
[BlackElo "2471"]
[Result "1-0"]
[Round "08"]
[TimeControl "180+2"]
[Date "2023.05.09"]
[WhiteClock "0:02:03"]
[BlackClock "0:00:07"]

1. g3 {[%clk 0:03:00]}  e5 {[%clk 0:02:58]} 2. c4 {[%clk 0:03:00]}  Nc6 {[%clk 0:02:54]} 3. Bg2 {[%clk 0:03:00]}  Bc5 {[%clk 0:02:55]} 4. e3 {[%clk 0:03:00]}  d6 {[%clk 0:02:55]} 5. Nc3 {[%clk 0:03:01]}  a5 {[%clk 0:02:54]} 6. Nge2 {[%clk 0:03:01]}  Ba7 {[%clk 0:02:49]} 7. d4 {[%clk 0:03:01]}  Nge7 {[%clk 0:02:48]} 8. Nb5 {[%clk 0:03:00]}  Bb8 {[%clk 0:02:44]} 9. O-O {[%clk 0:03:00]}  O-O {[%clk 0:02:43]} 10. b3 {[%clk 0:03:00]}  exd4 {[%clk 0:02:38]} 11. exd4 {[%clk 0:02:59]}  Na7 {[%clk 0:02:27]} 12. Nbc3 {[%clk 0:02:58]}  c6 {[%clk 0:02:26]} 13. Re1 {[%clk 0:02:55]}  Ng6 {[%clk 0:02:22]} 14. Nf4 {[%clk 0:02:55]}  Nxf4 {[%clk 0:02:17]} 15. Bxf4 {[%clk 0:02:55]}  Bc7 {[%clk 0:02:17]} 16. Qd2 {[%clk 0:02:54]}  h6 {[%clk 0:02:13]} 17. h4 {[%clk 0:02:54]}  Rb8 {[%clk 0:02:10]} 18. d5 {[%clk 0:02:51]}  Bf5 {[%clk 0:01:52]} 19. Be4 {[%clk 0:02:46]}  Qf6 {[%clk 0:01:47]} 20. Bxf5 {[%clk 0:02:35]}  Qxf5 {[%clk 0:01:48]} 21. Re7 {[%clk 0:02:35]}  Bd8 {[%clk 0:01:43]} 22. Re2 {[%clk 0:02:27]}  Nc8 {[%clk 0:01:39]} 23. Rae1 {[%clk 0:02:26]}  Bf6 {[%clk 0:01:33]} 24. Ne4 {[%clk 0:02:26]}  Be5 {[%clk 0:01:11]} 25. Bxe5 {[%clk 0:02:26]}  dxe5 {[%clk 0:01:08]} 26. Qxa5 {[%clk 0:02:27]}  cxd5 {[%clk 0:01:04]} 27. cxd5 {[%clk 0:02:23]}  Qg6 {[%clk 0:01:00]} 28. Qc7 {[%clk 0:02:19]}  Ra8 {[%clk 0:00:54]} 29. d6 {[%clk 0:02:17]}  f5 {[%clk 0:00:47]} 30. d7 {[%clk 0:02:13]}  fxe4 {[%clk 0:00:45]} 31. d8=Q {[%clk 0:02:12]}  Rxd8 {[%clk 0:00:45]} 32. Qxd8+ {[%clk 0:02:12]}  Kh7 {[%clk 0:00:46]} 33. Rxe4 {[%clk 0:02:11]}  Nb6 {[%clk 0:00:32]} 34. Qd2 {[%clk 0:02:08]}  Rc8 {[%clk 0:00:26]} 35. Qe2 {[%clk 0:02:03]}  Nd5 {[%clk 0:00:23]} 36. h5 {[%clk 0:02:03]}  Qf6 {[%clk 0:00:13]} 37. Rxe5 {[%clk 0:02:03]}  Nc3 {[%clk 0:00:05]} 38. Qd3+ {[%clk 0:02:03]}  Kg8 {[%clk 0:00:05]} 39. Re8+ {[%clk 0:02:03]}  Rxe8 {[%clk 0:00:06]} 40. Rxe8+ {[%clk 0:02:03]}  Kf7 {[%clk 0:00:06]} 41. Qd7+ {[%clk 0:02:03]}  Qe7 {[%clk 0:00:07]} 42. Qxe7# {[%clk 0:02:03]} 1-0


[Site "https://www.chess.com"]

[Event "Titled Tuesday Blitz May 9 Late 2023"]
[White "Kramnik, Vladimir"]
[Black "Harshavardhan G B"]
[WhiteFideId "4101588"]
[BlackFideId "25059009"]
[WhiteElo "2703"]
[BlackElo "2323"]
[Result "1-0"]
[Round "08"]
[TimeControl "180+2"]
[Date "2023.05.09"]
[WhiteClock "0:00:20"]
[BlackClock "0:00:09"]

1. e4 {[%clk 0:03:00]}  c5 {[%clk 0:02:59]} 2. Nf3 {[%clk 0:03:00]}  d6 {[%clk 0:02:59]} 3. Bc4 {[%clk 0:02:56]}  Nf6 {[%clk 0:02:58]} 4. d3 {[%clk 0:02:56]}  Nc6 {[%clk 0:02:57]} 5. O-O {[%clk 0:02:56]}  e6 {[%clk 0:02:55]} 6. Bb3 {[%clk 0:02:55]}  Be7 {[%clk 0:02:55]} 7. c3 {[%clk 0:02:54]}  O-O {[%clk 0:02:55]} 8. a4 {[%clk 0:02:53]}  a6 {[%clk 0:02:44]} 9. Re1 {[%clk 0:02:53]}  Rb8 {[%clk 0:02:43]} 10. d4 {[%clk 0:02:46]}  cxd4 {[%clk 0:02:38]} 11. cxd4 {[%clk 0:02:46]}  e5 {[%clk 0:02:37]} 12. d5 {[%clk 0:02:31]}  Na5 {[%clk 0:02:32]} 13. Bc2 {[%clk 0:02:21]}  b5 {[%clk 0:02:32]} 14. axb5 {[%clk 0:02:20]}  axb5 {[%clk 0:02:32]} 15. b3 {[%clk 0:02:15]}  b4 {[%clk 0:02:24]} 16. Be3 {[%clk 0:02:13]}  Bg4 {[%clk 0:02:17]} 17. Nbd2 {[%clk 0:02:09]}  Rc8 {[%clk 0:02:07]} 18. h3 {[%clk 0:02:09]}  Bh5 {[%clk 0:02:06]} 19. Ra4 {[%clk 0:02:07]}  Bg6 {[%clk 0:01:53]} 20. Bb1 {[%clk 0:01:53]}  Nb7 {[%clk 0:01:46]} 21. Rxb4 {[%clk 0:01:50]}  Nc5 {[%clk 0:01:47]} 22. Bxc5 {[%clk 0:01:39]}  Rxc5 {[%clk 0:01:46]} 23. Nc4 {[%clk 0:01:33]}  Qa8 {[%clk 0:01:37]} 24. Nh4 {[%clk 0:01:31]}  Rb8 {[%clk 0:01:35]} 25. Nxg6 {[%clk 0:01:29]}  hxg6 {[%clk 0:01:34]} 26. Ra4 {[%clk 0:01:24]}  Qb7 {[%clk 0:01:26]} 27. Bc2 {[%clk 0:01:23]}  Rbc8 {[%clk 0:01:19]} 28. Na5 {[%clk 0:01:17]}  Qb6 {[%clk 0:01:00]} 29. Nc6 {[%clk 0:01:16]}  Bf8 {[%clk 0:01:00]} 30. b4 {[%clk 0:01:01]}  Rc3 {[%clk 0:00:51]} 31. Qd2 {[%clk 0:00:59]}  R3xc6 {[%clk 0:00:43]} 32. dxc6 {[%clk 0:00:58]}  Qxc6 {[%clk 0:00:44]} 33. Ra2 {[%clk 0:00:41]}  d5 {[%clk 0:00:44]} 34. exd5 {[%clk 0:00:40]}  Qxd5 {[%clk 0:00:17]} 35. Qxd5 {[%clk 0:00:39]}  Nxd5 {[%clk 0:00:18]} 36. Bb3 {[%clk 0:00:38]}  Nxb4 {[%clk 0:00:16]} 37. Ra7 {[%clk 0:00:36]}  Bc5 {[%clk 0:00:13]} 38. Rxf7 {[%clk 0:00:33]}  Kh7 {[%clk 0:00:13]} 39. Re4 {[%clk 0:00:33]}  g5 {[%clk 0:00:12]} 40. Rc4 {[%clk 0:00:22]}  Nd3 {[%clk 0:00:12]} 41. Bc2 {[%clk 0:00:21]}  Bxf2+ {[%clk 0:00:09]} 42. Rxf2 {[%clk 0:00:20]} 1-0


[Site "https://www.chess.com"]

[Event "Titled Tuesday Blitz May 9 Late 2023"]
[White "Mazurkiewicz, Michal"]
[Black "Makarian, Rudik"]
[WhiteFideId "1124943"]
[BlackFideId "44105681"]
[WhiteElo "2054"]
[BlackElo "2461"]
[Result "0-1"]
[Round "08"]
[TimeControl "180+2"]
[Date "2023.05.09"]
[WhiteClock "0:00:00"]
[BlackClock "0:01:48"]

1. e4 {[%clk 0:03:00]}  c5 {[%clk 0:02:59]} 2. Nf3 {[%clk 0:03:00]}  Nc6 {[%clk 0:02:59]} 3. g3 {[%clk 0:02:59]}  e6 {[%clk 0:02:59]} 4. d3 {[%clk 0:03:00]}  d5 {[%clk 0:02:57]} 5. Nbd2 {[%clk 0:03:00]}  Nf6 {[%clk 0:02:58]} 6. Bg2 {[%clk 0:03:00]}  Be7 {[%clk 0:02:59]} 7. O-O {[%clk 0:03:00]}  O-O {[%clk 0:02:59]} 8. e5 {[%clk 0:03:01]}  Nd7 {[%clk 0:03:00]} 9. Re1 {[%clk 0:03:01]}  Qc7 {[%clk 0:03:00]} 10. Qe2 {[%clk 0:03:01]}  b5 {[%clk 0:03:01]} 11. h4 {[%clk 0:03:01]}  Bb7 {[%clk 0:03:01]} 12. Nf1 {[%clk 0:03:01]}  Rfc8 {[%clk 0:03:01]} 13. c3 {[%clk 0:03:01]}  b4 {[%clk 0:03:00]} 14. Bf4 {[%clk 0:03:01]}  a5 {[%clk 0:02:59]} 15. Ne3 {[%clk 0:02:59]}  Qd8 {[%clk 0:02:59]} 16. h5 {[%clk 0:02:55]}  h6 {[%clk 0:02:59]} 17. Ng4 {[%clk 0:02:54]}  a4 {[%clk 0:02:51]} 18. a3 {[%clk 0:02:51]}  Bf8 {[%clk 0:02:46]} 19. Ngh2 {[%clk 0:02:35]}  Ra6 {[%clk 0:02:43]} 20. g4 {[%clk 0:02:34]}  Be7 {[%clk 0:02:43]} 21. Qe3 {[%clk 0:02:02]}  Rb6 {[%clk 0:02:30]} 22. g5 {[%clk 0:01:55]}  hxg5 {[%clk 0:02:30]} 23. Nxg5 {[%clk 0:01:39]}  Ncxe5 {[%clk 0:02:29]} 24. axb4 {[%clk 0:01:26]}  cxb4 {[%clk 0:02:24]} 25. Qg3 {[%clk 0:00:54]}  bxc3 {[%clk 0:02:19]} 26. h6 {[%clk 0:00:45]}  Bf6 {[%clk 0:02:00]} 27. h7+ {[%clk 0:00:32]}  Kh8 {[%clk 0:02:00]} 28. d4 {[%clk 0:00:24]}  cxb2 {[%clk 0:01:56]} 29. dxe5 {[%clk 0:00:15]}  Bxg5 {[%clk 0:01:54]} 30. Bxg5 {[%clk 0:00:14]}  bxa1=Q {[%clk 0:01:55]} 31. Rxa1 {[%clk 0:00:00]}  Qf8 {[%clk 0:01:48]} 0-1


[Site "https://www.chess.com"]

[Event "Titled Tuesday Blitz May 9 Late 2023"]
[White "Tari, Aryan"]
[Black "Kucuksari, Kaan"]
[WhiteFideId "1510045"]
[BlackFideId "6380166"]
[WhiteElo "2571"]
[BlackElo "2364"]
[Result "1-0"]
[Round "08"]
[TimeControl "180+2"]
[Date "2023.05.09"]
[WhiteClock "0:00:12"]
[BlackClock "0:00:00"]

1. e4 {[%clk 0:02:57]}  c5 {[%clk 0:03:00]} 2. Nc3 {[%clk 0:02:55]}  Nc6 {[%clk 0:02:56]} 3. f4 {[%clk 0:02:55]}  g6 {[%clk 0:02:55]} 4. Nf3 {[%clk 0:02:55]}  Bg7 {[%clk 0:02:56]} 5. Bb5 {[%clk 0:02:55]}  e6 {[%clk 0:02:52]} 6. Bxc6 {[%clk 0:02:54]}  bxc6 {[%clk 0:02:51]} 7. O-O {[%clk 0:02:53]}  Ne7 {[%clk 0:02:43]} 8. d3 {[%clk 0:02:53]}  Ba6 {[%clk 0:02:30]} 9. Qe1 {[%clk 0:02:50]}  O-O {[%clk 0:02:27]} 10. Kh1 {[%clk 0:02:46]}  f5 {[%clk 0:02:24]} 11. e5 {[%clk 0:02:44]}  Nd5 {[%clk 0:02:07]} 12. Na4 {[%clk 0:02:40]}  d6 {[%clk 0:02:05]} 13. Bd2 {[%clk 0:02:34]}  Bb5 {[%clk 0:01:52]} 14. Nc3 {[%clk 0:02:22]}  Nxc3 {[%clk 0:01:52]} 15. Bxc3 {[%clk 0:02:23]}  d5 {[%clk 0:01:52]} 16. b3 {[%clk 0:02:19]}  c4 {[%clk 0:01:36]} 17. dxc4 {[%clk 0:02:10]}  dxc4 {[%clk 0:01:36]} 18. Rd1 {[%clk 0:02:11]}  Qe7 {[%clk 0:01:31]} 19. Nd4 {[%clk 0:01:55]}  cxb3 {[%clk 0:01:28]} 20. Nxb5 {[%clk 0:01:55]}  bxc2 {[%clk 0:01:17]} 21. Rc1 {[%clk 0:01:53]}  cxb5 {[%clk 0:01:14]} 22. Bb4 {[%clk 0:01:53]}  Qc7 {[%clk 0:01:14]} 23. Bxf8 {[%clk 0:01:53]}  Bxf8 {[%clk 0:01:14]} 24. Rf2 {[%clk 0:01:46]}  Rc8 {[%clk 0:01:14]} 25. Qe2 {[%clk 0:01:45]}  Qa5 {[%clk 0:01:07]} 26. h3 {[%clk 0:01:32]}  Qxa2 {[%clk 0:00:47]} 27. Qxb5 {[%clk 0:01:28]}  Ba3 {[%clk 0:00:21]} 28. Qd7 {[%clk 0:01:28]}  Rc5 {[%clk 0:00:21]} 29. Rd2 {[%clk 0:01:17]}  Rd5 {[%clk 0:00:14]} 30. Qxe6+ {[%clk 0:01:17]}  Kg7 {[%clk 0:00:14]} 31. Rxd5 {[%clk 0:01:17]}  Kh6 {[%clk 0:00:14]} 32. Rd6 {[%clk 0:00:29]}  Qxe6 {[%clk 0:00:12]} 33. Rxe6 {[%clk 0:00:30]}  Bxc1 {[%clk 0:00:13]} 34. Rc6 {[%clk 0:00:30]}  Bxf4 {[%clk 0:00:13]} 35. e6 {[%clk 0:00:28]}  Kg7 {[%clk 0:00:11]} 36. Rxc2 {[%clk 0:00:27]}  Kf6 {[%clk 0:00:11]} 37. Rc6 {[%clk 0:00:25]}  a5 {[%clk 0:00:08]} 38. Ra6 {[%clk 0:00:25]}  Be5 {[%clk 0:00:06]} 39. Kg1 {[%clk 0:00:20]}  a4 {[%clk 0:00:06]} 40. Kf2 {[%clk 0:00:16]}  a3 {[%clk 0:00:06]} 41. Kf3 {[%clk 0:00:13]}  a2 {[%clk 0:00:07]} 42. Rxa2 {[%clk 0:00:12]}  Kxe6 {[%clk 0:00:07]} 43. Ra7 {[%clk 0:00:11]}  h5 {[%clk 0:00:07]} 44. Ra6+ {[%clk 0:00:12]}  Kf7 {[%clk 0:00:05]} 45. Ke3 {[%clk 0:00:12]}  h4 {[%clk 0:00:04]} 46. Kd3 {[%clk 0:00:12]}  Kg7 {[%clk 0:00:04]} 47. Kc4 {[%clk 0:00:13]}  Kh6 {[%clk 0:00:04]} 48. Kd5 {[%clk 0:00:14]}  Bg7 {[%clk 0:00:03]} 49. Ke6 {[%clk 0:00:14]}  Kg5 {[%clk 0:00:02]} 50. Kf7 {[%clk 0:00:15]}  Be5 {[%clk 0:00:02]} 51. Rxg6+ {[%clk 0:00:15]}  Kf4 {[%clk 0:00:02]} 52. Ke6 {[%clk 0:00:14]}  Ke4 {[%clk 0:00:02]} 53. Rg5 {[%clk 0:00:12]}  Bg3 {[%clk 0:00:02]} 54. Rxf5 {[%clk 0:00:12]}  Ke3 {[%clk 0:00:02]} 55. Kf6 {[%clk 0:00:12]}  Ke4 {[%clk 0:00:02]} 56. Kg5 {[%clk 0:00:12]}  Ke3 {[%clk 0:00:02]} 57. Kg4 {[%clk 0:00:13]}  Ke2 {[%clk 0:00:02]} 58. Rf3 {[%clk 0:00:13]}  Be1 {[%clk 0:00:02]} 59. Rf8 {[%clk 0:00:13]}  Bg3 {[%clk 0:00:02]} 60. Rh8 {[%clk 0:00:12]}  Kf2 {[%clk 0:00:00]} 61. Rxh4 {[%clk 0:00:12]} 1-0


[Site "https://www.chess.com"]

[Event "Titled Tuesday Blitz May 9 Late 2023"]
[White "Remizov, Yaroslav"]
[Black "Matinian, Nikita"]
[WhiteFideId "34134015"]
[BlackFideId "24129100"]
[WhiteElo "2400"]
[BlackElo "2422"]
[Result "1-0"]
[Round "08"]
[TimeControl "180+2"]
[Date "2023.05.09"]
[WhiteClock "0:00:13"]
[BlackClock "0:00:00"]

1. e4 {[%clk 0:03:00]}  c5 {[%clk 0:02:58]} 2. Nf3 {[%clk 0:03:00]}  e6 {[%clk 0:02:58]} 3. d4 {[%clk 0:02:57]}  cxd4 {[%clk 0:02:59]} 4. Nxd4 {[%clk 0:02:57]}  Nc6 {[%clk 0:03:00]} 5. Nc3 {[%clk 0:02:53]}  Nf6 {[%clk 0:02:59]} 6. Nxc6 {[%clk 0:02:44]}  bxc6 {[%clk 0:03:00]} 7. e5 {[%clk 0:02:44]}  Nd5 {[%clk 0:03:01]} 8. Ne4 {[%clk 0:02:45]}  Bb7 {[%clk 0:03:01]} 9. Be2 {[%clk 0:02:43]}  Qb8 {[%clk 0:02:52]} 10. f4 {[%clk 0:02:38]}  c5 {[%clk 0:02:47]} 11. O-O {[%clk 0:02:34]}  Ne3 {[%clk 0:02:46]} 12. Bxe3 {[%clk 0:02:30]}  Bxe4 {[%clk 0:02:45]} 13. Bf3 {[%clk 0:02:29]}  Qb7 {[%clk 0:02:37]} 14. b3 {[%clk 0:02:17]}  Be7 {[%clk 0:02:32]} 15. Qd2 {[%clk 0:02:15]}  O-O {[%clk 0:02:12]} 16. Rad1 {[%clk 0:02:14]}  Rfd8 {[%clk 0:02:11]} 17. Qa5 {[%clk 0:02:10]}  Bxf3 {[%clk 0:01:36]} 18. Rxf3 {[%clk 0:02:11]}  Qb4 {[%clk 0:01:36]} 19. Bd2 {[%clk 0:02:00]}  Qd4+ {[%clk 0:01:35]} 20. Kh1 {[%clk 0:01:59]}  d5 {[%clk 0:01:25]} 21. exd6 {[%clk 0:01:57]}  Rxd6 {[%clk 0:01:22]} 22. Rd3 {[%clk 0:01:36]}  Qf2 {[%clk 0:01:15]} 23. Be3 {[%clk 0:00:41]}  Rxd3 {[%clk 0:01:15]} 24. Rxd3 {[%clk 0:00:42]}  Qf1+ {[%clk 0:01:12]} 25. Bg1 {[%clk 0:00:43]}  Qxf4 {[%clk 0:01:02]} 26. Rd7 {[%clk 0:00:43]}  Bf6 {[%clk 0:00:30]} 27. Rxa7 {[%clk 0:00:43]}  Rf8 {[%clk 0:00:14]} 28. Qxc5 {[%clk 0:00:37]}  h5 {[%clk 0:00:11]} 29. a4 {[%clk 0:00:36]}  h4 {[%clk 0:00:11]} 30. h3 {[%clk 0:00:36]}  Be5 {[%clk 0:00:10]} 31. a5 {[%clk 0:00:34]}  Rd8 {[%clk 0:00:10]} 32. Rd7 {[%clk 0:00:25]}  Rxd7 {[%clk 0:00:04]} 33. Qc8+ {[%clk 0:00:25]}  Kh7 {[%clk 0:00:04]} 34. Qxd7 {[%clk 0:00:25]}  f5 {[%clk 0:00:02]} 35. Qxe6 {[%clk 0:00:22]}  Qe4 {[%clk 0:00:03]} 36. a6 {[%clk 0:00:21]}  f4 {[%clk 0:00:02]} 37. Qg4 {[%clk 0:00:20]}  Bd4 {[%clk 0:00:01]} 38. Qxh4+ {[%clk 0:00:19]}  Kg6 {[%clk 0:00:02]} 39. Qg4+ {[%clk 0:00:19]}  Kh6 {[%clk 0:00:03]} 40. Qf3 {[%clk 0:00:14]}  Qe5 {[%clk 0:00:02]} 41. a7 {[%clk 0:00:13]}  Bxg1 {[%clk 0:00:02]} 42. a8=Q {[%clk 0:00:13]}  Qe1 {[%clk 0:00:00]} 43. Qxf4+ {[%clk 0:00:13]} 1-0


[Site "https://www.chess.com"]